bitfinex/quotes_ETHUSD_20250406
["timestamp","ask_amount","ask_price","bid_price","bid_amount"]
[1743918406870,9.82762653,1810.0,1809.9,0.78085137]
[1743918407069,9.82762653,1810.0,1809.8,0.8092]
[1743918407299,9.82762653,1810.0,1809.9,0.7807831]
[1743918407602,9.82762653,1810.0,1809.8,0.8092]
[1743918407813,9.82762653,1810.0,1809.9,0.78076135]
[1743918408113,9.82762653,1810.0,1809.8,0.8092]
[1743918408275,9.82762653,1810.0,1809.9,0.78076135]
[1743918408805,9.82762653,1810.0,1809.8,0.8092]
[1743918409015,9.82762653,1810.0,1809.9,0.78076135]
[1743918409199,9.82762653,1810.0,1809.8,0.8092]
[1743918409502,9.82762653,1810.0,1809.9,0.78076135]
[1743918410205,9.82762653,1810.0,1809.8,0.8092]
[1743918410504,9.82762653,1810.0,1809.9,0.78076135]
[1743918410805,9.82762653,1810.0,1809.8,0.8092]
[1743918411006,9.82762653,1810.0,1809.9,0.78076135]
[1743918411213,9.82762653,1810.0,1809.8,0.8092]
[1743918411505,9.82762653,1810.0,1809.9,0.78076135]
[1743918411805,9.82762653,1810.0,1809.8,0.8092]
[1743918412004,9.82762653,1810.0,1809.9,0.78067132]
[1743918412170,9.82762653,1810.0,1809.8,0.8092]
[1743918412371,9.82762653,1810.0,1809.9,0.78067132]
[1743918412567,9.82762653,1810.0,1809.8,0.8092]
[1743918412771,9.82762653,1810.0,1809.9,0.78067132]
[1743918412983,9.82762653,1810.0,1809.8,0.8092]
[1743918413186,9.82762653,1810.0,1809.9,0.78067132]
[1743918413386,9.82762653,1810.0,1809.8,0.8092]
[1743918413585,9.82762653,1810.0,1809.9,0.78067132]
[1743918413786,9.82762653,1810.0,1809.8,0.8092]
[1743918414008,9.82762653,1810.0,1809.9,0.78067132]
[1743918414175,9.82762653,1810.0,1809.8,0.8092]
[1743918414375,9.82762653,1810.0,1809.9,0.78067132]
[1743918414575,9.82762653,1810.0,1809.8,0.8092]
[1743918414888,9.82762653,1810.0,1809.9,0.78067132]
[1743918415387,9.82762653,1810.0,1809.8,0.8092]
[1743918415589,9.82762653,1810.0,1809.9,0.78067132]
[1743918415800,9.82762653,1810.0,1809.8,0.8092]
[1743918415976,9.82762653,1810.0,1809.9,0.78067008]
[1743918416310,9.82762653,1810.0,1809.8,0.8092]
[1743918416607,9.82762653,1810.0,1809.9,0.78067008]
[1743918416816,9.82762653,1810.0,1809.8,0.8092]
[1743918416978,9.82762653,1810.0,1809.9,0.78067008]
[1743918417181,9.82762653,1810.0,1809.8,0.8092]
[1743918417382,9.82762653,1810.0,1809.9,0.78067008]
[1743918417582,9.82762653,1810.0,1809.8,0.8092]
[1743918417813,9.82762653,1810.0,1809.9,0.78067008]
[1743918418113,9.82762653,1810.0,1809.8,0.8092]
[1743918418413,9.82762653,1810.0,1809.9,0.78067008]
[1743918418713,9.82762653,1810.0,1809.8,0.8092]
[1743918418913,9.82762653,1810.0,1809.9,0.78067008]
[1743918419213,9.82762653,1810.0,1809.8,0.8092]
[1743918419416,9.82762653,1810.0,1809.9,0.78058005]
[1743918419624,9.82762653,1810.0,1809.8,0.8092]
[1743918419777,9.82762653,1810.0,1809.9,0.78058005]
[1743918419981,9.82762653,1810.0,1809.8,0.8092]
[1743918420193,9.82762653,1810.0,1809.9,0.78058005]
[1743918420392,9.82762653,1810.0,1809.8,0.8092]
[1743918420593,9.82762653,1810.0,1809.9,0.78058005]
[1743918420809,9.82762653,1810.0,1809.8,0.8092]
[1743918421017,9.82762653,1810.0,1809.9,0.78058005]
[1743918421216,9.82762653,1810.0,1809.8,0.8092]
[1743918421405,9.82762653,1810.0,1809.9,0.78058005]
[1743918421578,9.82762653,1810.0,1809.8,0.8092]
[1743918421779,9.82762653,1810.0,1809.9,0.78058005]
[1743918421982,9.82762653,1810.0,1809.8,0.8092]
[1743918422183,9.82762653,1810.0,1809.9,0.78058005]
[1743918422383,9.82762653,1810.0,1809.8,0.8092]
[1743918422604,9.82762653,1810.0,1809.9,0.78058005]
[1743918422806,9.82762653,1810.0,1809.8,0.8092]
[1743918423118,9.82762653,1810.0,1809.9,0.78058005]
[1743918423413,9.82762653,1810.0,1809.8,0.8092]
[1743918423720,9.82762653,1810.0,1809.9,0.78053446]
[1743918424020,9.82762653,1810.0,1809.8,0.8092]
[1743918424318,9.82762653,1810.0,1809.9,0.78053446]
[1743918424722,9.82762653,1810.0,1809.8,0.8092]
[1743918425018,9.82762653,1810.0,1809.9,0.78053446]
[1743918425217,9.82762653,1810.0,1809.8,0.8092]
[1743918425419,9.82762653,1810.0,1809.9,0.78053446]
[1743918425586,9.82762653,1810.0,1809.8,0.8092]
[1743918425788,9.82762653,1810.0,1809.9,0.78053446]
[1743918425987,9.82762653,1810.0,1809.8,0.8092]
[1743918426187,9.82762653,1810.0,1809.9,0.78053446]
[1743918426401,9.82762653,1810.0,1809.8,0.8092]
[1743918426599,9.82762653,1810.0,1809.9,0.78053446]
[1743918426796,9.82762653,1810.0,1809.8,0.8092]
[1743918427141,6.02,1810.2,1809.9,0.78051055]
[1743918427325,9.88698,1810.2,1810.0,0.8014]
[1743918427501,10.30230092,1810.2,1810.0,0.8014]
[1743918427815,10.30230092,1810.2,1810.1,0.78053313]
[1743918428221,13.30230092,1810.2,1810.1,0.78053313]
[1743918429817,9.43532092,1810.2,1810.1,0.78053313]
[1743918430325,9.02,1810.2,1810.1,0.78053313]
[1743918430526,2.53570146,1810.3,1810.1,0.78053313]
[1743918430722,6.40222146,1810.5,1810.2,0.8014]
[1743918431141,2.53570146,1810.5,1810.3,0.78017828]
[1743918431704,6.02,1810.6,1810.4,4.66782]
[1743918431904,8.55570146,1810.7,1810.4,4.66782]
[1743918432108,8.97582886,1810.7,1810.5,0.78002305]
[1743918433512,11.97582886,1810.7,1810.6,0.7682]
[1743918434006,11.97582886,1810.7,1810.6,1.54822305]
[1743918434659,11.55570146,1810.7,1810.6,1.54822305]
[1743918435652,6.02,1810.7,1810.6,1.54822305]
[1743918435854,2.53570146,1810.9,1810.6,5.95579836]
[1743918436169,3.41983709,1811.0,1810.7,3.86582]
[1743918436439,3.0,1811.0,1810.8,1.54715896]
[1743918436950,6.02,1811.1,1810.9,3.86544]
[1743918437308,6.02,1811.1,1810.9,3.92065556]
[1743918437642,6.02,1811.1,1811.0,1.54715896]
[1743918437847,4.21978979,1811.4,1811.0,5.41241896]
[1743918438138,4.21978979,1811.4,1811.1,3.92022891]
[1743918438339,3.86424,1811.5,1811.2,0.7682]
[1743918438541,10.23978979,1811.6,1811.2,5.87176695]
[1743918438744,6.02,1811.6,1811.3,3.8645]
[1743918438949,6.02,1811.6,1811.2,2.00695695]
[1743918438950,3.86422,1811.5,1811.2,2.00695695]
[1743918439248,3.86422,1811.5,1811.2,1.231522]
[1743918439443,3.86422,1811.5,1811.3,0.7754128]
[1743918439956,3.86441,1811.4,1811.3,0.7754128]
[1743918440319,3.86441,1811.4,1811.0,13.59172]
[1743918440825,3.86441,1811.4,1811.1,0.7754128]
[1743918441153,4.14632,1811.5,1811.1,4.69558129]
[1743918441448,14.79638157,1811.6,1811.2,3.8648]
[1743918441827,18.66056157,1811.6,1811.3,0.7754128]
[1743918442047,18.66056157,1811.6,1811.1,3.92016849]
[1743918442250,3.86425,1811.5,1811.2,0.7754128]
[1743918442743,3.86442,1811.4,1811.2,0.7754128]
[1743918443445,3.86425,1811.5,1811.2,0.7754128]
[1743918443851,7.72862,1811.5,1811.2,0.7754128]
[1743918444053,3.86425,1811.5,1811.2,0.7754128]
[1743918444519,7.72862,1811.5,1811.2,0.7754128]
[1743918444848,3.86443,1811.4,1811.2,0.7754128]
[1743918446354,3.86421,1811.5,1811.2,0.7754128]
[1743918447183,14.79636157,1811.6,1811.2,1.5677128]
[1743918447345,14.51426157,1811.6,1811.3,0.6]
[1743918447653,18.37842157,1811.6,1811.3,0.6]
[1743918447817,18.37842157,1811.6,1811.4,0.7754128]
[1743918448024,18.37842157,1811.6,1811.3,0.6]
[1743918448355,14.51426157,1811.6,1811.4,0.7754128]
[1743918448557,18.37842157,1811.6,1811.4,0.7754128]
[1743918448855,18.37842157,1811.6,1811.5,0.7754128]
[1743918449062,18.37842157,1811.6,1811.3,0.6]
[1743918449264,18.37842157,1811.6,1811.4,0.7754128]
[1743918449463,18.37842157,1811.6,1811.3,1.125703]
[1743918449687,18.37842157,1811.6,1811.4,0.7754128]
[1743918449965,18.37842157,1811.6,1811.3,1.125703]
[1743918450128,18.37842157,1811.6,1811.5,0.7754128]
[1743918450329,18.37842157,1811.6,1811.3,1.125703]
[1743918450565,18.37842157,1811.6,1811.5,0.7754128]
[1743918450864,3.86421,1811.5,1811.3,0.6]
[1743918451069,3.86421,1811.5,1811.3,1.125703]
[1743918451466,3.86421,1811.5,1811.4,0.7754128]
[1743918451650,3.86421,1811.5,1811.3,1.125703]
[1743918451818,14.51426157,1811.6,1811.4,0.7754128]
[1743918452158,18.37843157,1811.6,1811.3,1.125703]
[1743918452358,14.51426157,1811.6,1811.5,0.7754128]
[1743918452568,3.86423,1811.5,1811.3,0.6]
[1743918453127,3.86441,1811.4,1811.3,0.6]
[1743918455676,3.86423,1811.5,1811.3,0.6]
[1743918456472,7.7286,1811.5,1811.3,0.6]
[1743918457669,2.53166773,1811.4,1811.3,0.6]
[1743918457875,6.39607773,1811.4,1811.3,0.6]
[1743918461677,2.53166773,1811.4,1811.3,0.6]
[1743918465272,6.39607773,1811.4,1811.3,0.6]
[1743918466883,6.39607773,1811.4,1811.3,1.37428338]
[1743918467066,2.53166773,1811.4,1811.3,2.14788338]
[1743918471397,2.53166773,1811.4,1811.3,1.37428338]
[1743918471695,6.39607773,1811.4,1811.3,1.37428338]
[1743918474608,2.53166773,1811.4,1811.3,1.37428338]
[1743918475804,6.39607773,1811.4,1811.3,1.37428338]
[1743918476479,7.7042055,1811.4,1811.3,1.37428338]
[1743918476675,7.7042055,1811.4,1811.3,0.77428338]
[1743918476876,3.86477,1811.3,1811.1,5.089]
[1743918477075,2.53166773,1811.2,1811.1,5.089]
[1743918481312,2.53166773,1811.4,1811.1,9.72765]
[1743918481512,2.53166773,1811.4,1811.1,10.50206621]
[1743918481711,2.53166773,1811.4,1811.2,0.7625]
[1743918481899,2.53166773,1811.4,1811.2,4.62725]
[1743918482216,15.82613951,1811.6,1811.3,0.77441621]
[1743918482415,3.86428,1811.5,1811.3,1.37441621]
[1743918483514,2.53166773,1811.4,1811.3,1.37441621]
[1743918486010,2.53166773,1811.4,1811.3,1.97458883]
[1743918487285,2.53166773,1811.4,1811.3,1.37441621]
[1743918487482,2.53166773,1811.4,1811.3,2.14081621]
[1743918491632,2.53166773,1811.4,1811.3,1.37441621]
[1743918491924,6.39607773,1811.4,1811.3,1.37441621]
[1743918493339,2.53166773,1811.4,1811.3,1.37441621]
[1743918495125,2.53166773,1811.4,1811.3,2.14081621]
[1743918495325,2.53166773,1811.4,1811.3,2.74137683]
[1743918497835,2.53166773,1811.4,1811.3,2.14081621]
[1743918498011,2.53166773,1811.4,1811.3,1.37441621]
[1743918498623,6.39607773,1811.4,1811.3,1.37441621]
[1743918499861,8.08403671,1811.4,1811.3,1.37441621]
[1743918500427,4.21962671,1811.4,1811.3,1.37441621]
[1743918500620,14.51418849,1811.6,1811.3,2.66473283]
[1743918500957,14.51418849,1811.6,1811.3,2.14081621]
[1743918501244,18.37832849,1811.6,1811.3,2.14081621]
[1743918502013,3.8642,1811.5,1811.3,2.14081621]
[1743918502844,14.51418849,1811.6,1811.3,2.14081621]
[1743918503974,10.65010849,1811.6,1811.3,6.00534621]
[1743918504127,10.65010849,1811.6,1811.4,4.46493462]
[1743918504329,4.63010849,1811.6,1811.4,1.37348927]
[1743918505623,4.63010849,1811.6,1811.4,0.77295465]
[1743918505822,4.63010849,1811.6,1811.3,5.23093]
[1743918506053,4.63010849,1811.6,1811.4,0.77295465]
[1743918506259,8.49409849,1811.6,1811.3,5.23093]
[1743918506454,8.49409849,1811.6,1811.4,0.77295465]
[1743918506655,8.49409849,1811.6,1811.3,5.23093]
[1743918506871,8.49409849,1811.6,1811.4,1.29604765]
[1743918507900,8.49409849,1811.6,1811.4,0.77295465]
[1743918508200,8.49409849,1811.6,1811.3,5.23093]
[1743918508398,8.49409849,1811.6,1811.5,0.77279974]
[1743918508605,4.63010849,1811.6,1811.3,5.23093]
[1743918508758,0.41048178,1811.6,1811.5,0.77279974]
[1743918508960,4.21962671,1811.7,1811.5,0.77279974]
[1743918509258,4.21962671,1811.7,1811.5,1.23651971]
[1743918510214,4.64366083,1811.7,1811.5,1.23651971]
[1743918511694,8.50746083,1811.7,1811.5,1.23651971]
[1743918511894,8.50746083,1811.7,1811.5,0.77279974]
[1743918512092,8.50746083,1811.7,1811.3,5.23093]
[1743918512408,11.50746083,1811.7,1811.6,0.77279974]
[1743918512578,11.50746083,1811.7,1811.3,1.3664]
[1743918512773,3.86407,1811.6,1811.3,0.7664]
[1743918513004,3.86407,1811.6,1811.3,1.229522]
[1743918513191,4.21962671,1811.5,1811.3,1.229522]
[1743918514076,4.21962671,1811.5,1811.3,5.094102]
[1743918514306,11.50745083,1811.7,1811.3,5.094102]
[1743918514710,11.50745083,1811.7,1811.3,8.958592]
[1743918514896,11.50745083,1811.7,1811.4,0.8958592]
[1743918515069,11.50745083,1811.7,1811.4,4.7602592]
[1743918516465,11.50745083,1811.7,1811.5,0.6]
[1743918518009,15.37143083,1811.7,1811.5,0.6]
[1743918518212,3.86398,1811.6,1811.5,0.6]
[1743918518640,8.50748083,1811.7,1811.5,0.6]
[1743918521715,2.53104604,1811.6,1811.5,0.6]
[1743918522626,3.86525,1811.1,1810.6,4.65182]
[1743918522810,0.2821,1811.2,1810.2,5.111]
[1743918522811,2.53104604,1811.0,1810.9,0.7858]
[1743918523233,2.53104604,1811.0,1810.9,1.637484]
[1743918523421,2.53104604,1811.2,1810.9,5.502964]
[1743918523831,4.22054628,1811.2,1810.9,5.502964]
[1743918524034,4.22054628,1811.2,1810.9,9.368354]
[1743918524215,6.02,1811.3,1811.1,0.7858]
[1743918525100,6.02,1811.3,1811.1,5.9238]
[1743918525306,6.02,1811.3,1811.1,6.902689]
[1743918526549,6.02,1811.3,1811.2,0.58043497]
[1743918527634,8.08496628,1811.4,1811.2,0.58043497]
[1743918527810,11.94955628,1811.4,1811.2,0.58043497]
[1743918528537,8.08496628,1811.4,1811.2,0.58043497]
[1743918530460,6.86462,1811.3,1811.2,0.58043497]
[1743918530673,8.08653628,1810.7,1810.5,0.7833]
[1743918530962,8.08644628,1810.7,1810.6,0.43671669]
[1743918531525,11.95251628,1810.7,1810.4,0.7833]
[1743918531724,11.95251628,1810.7,1810.6,0.43671669]
[1743918531929,11.95251628,1810.7,1810.4,0.7833]
[1743918532143,11.95251628,1810.7,1810.6,0.43671669]
[1743918532347,11.95251628,1810.7,1810.4,0.7833]
[1743918532556,11.95251628,1810.7,1810.5,0.43671669]
[1743918533826,8.08644628,1810.7,1810.5,0.43671669]
[1743918534672,11.95251628,1810.7,1810.5,0.43671669]
[1743918535866,8.08644628,1810.7,1810.5,0.43671669]
[1743918536164,11.95251628,1810.7,1810.5,0.43671669]
[1743918537841,3.86612,1810.6,1810.5,0.43671669]
[1743918539273,8.08644628,1810.7,1810.5,0.43671669]
[1743918539573,3.86612,1810.6,1810.5,0.43671669]
[1743918549578,8.08650628,1810.7,1810.5,0.43671669]
[1743918551963,4.22054628,1810.7,1810.5,0.43671669]
[1743918552170,4.22054628,1810.9,1810.6,0.8166]
[1743918552400,4.22054628,1810.9,1810.7,0.4392785]
[1743918552777,8.08606628,1810.9,1810.7,0.4392785]
[1743918553807,6.39895634,1810.8,1810.7,0.4392785]
[1743918557218,2.53326634,1810.8,1810.7,0.4392785]
[1743918560902,6.39895634,1810.8,1810.7,0.4392785]
[1743918562305,2.53326634,1810.8,1810.7,0.4392785]
[1743918566424,6.02127603,1811.5,1810.8,0.8261]
[1743918566425,0.2821,1811.2,1810.8,0.8261]
[1743918566731,2.53326634,1811.2,1811.1,0.8261]
[1743918567292,2.53326634,1811.2,1811.1,1.2571033]
[1743918568282,2.53326634,1811.2,1811.1,5.1221533]
[1743918569679,9.8842,1811.5,1811.1,5.1221533]
[1743918569680,4.21946451,1811.4,1811.1,5.1221533]
[1743918572512,8.08387451,1811.4,1811.1,5.1221533]
[1743918572814,8.49628952,1811.4,1811.1,5.1221533]
[1743918573116,4.63187952,1811.4,1811.1,5.1221533]
[1743918574617,4.21946451,1811.4,1811.1,5.1221533]
[1743918574821,8.08388451,1811.4,1811.1,5.1221533]
[1743918575937,3.86466,1811.3,1811.1,1.2571033]
[1743918576233,3.86466,1811.3,1811.1,0.4310033]
[1743918579405,5.12848284,1811.3,1811.1,0.4310033]
[1743918582857,8.99326284,1811.3,1811.1,0.4310033]
[1743918584541,8.99326284,1811.3,1811.2,0.6]
[1743918584910,8.99326284,1811.3,1811.2,1.03024988]
[1743918585448,5.12848284,1811.3,1811.2,1.03024988]
[1743918588432,3.86466,1811.3,1811.2,1.03024988]
[1743918588739,8.77357842,1811.4,1811.2,1.03024988]
[1743918588936,8.49147842,1811.4,1811.2,1.03024988]
[1743918589145,4.62704842,1811.4,1811.2,1.03024988]
[1743918589349,4.21946451,1811.4,1811.2,1.82494988]
[1743918589549,4.21946451,1811.4,1811.2,2.39394587]
[1743918589935,10.23946451,1811.5,1811.2,2.39394587]
[1743918590154,10.23946451,1811.5,1811.2,6.25875587]
[1743918590319,10.65267052,1811.5,1811.2,6.25875587]
[1743918591357,14.51687052,1811.5,1811.2,2.39394587]
[1743918591853,2.53172056,1811.3,1811.2,2.39394587]
[1743918593780,2.53172056,1811.3,1811.2,1.59924587]
[1743918595273,6.43320601,1811.5,1811.3,3.86459]
[1743918595487,2.53172056,1811.7,1811.4,1.181159]
[1743918595648,2.53172056,1811.7,1811.4,1.61052382]
[1743918596335,2.53172056,1811.5,1811.4,1.61052382]
[1743918597570,2.53172056,1811.5,1811.4,6.75952382]
[1743918597766,2.53172056,1811.5,1811.4,10.62393382]
[1743918600383,2.53172056,1811.5,1811.4,6.75952382]
[1743918600580,2.53172056,1811.5,1811.4,5.96482382]
[1743918601884,6.02,1811.8,1811.5,3.8642]
[1743918602081,2.53172056,1811.7,1811.6,0.38642]
[1743918602582,2.53172056,1811.7,1811.6,0.81578482]
[1743918602881,2.53172056,1811.7,1811.6,0.42936482]
[1743918603078,0.1,1811.9,1811.7,3.86367]
[1743918603396,0.1,1811.9,1811.8,4.29236535]
[1743918603556,0.1,1811.9,1811.8,9.49955358]
[1743918603883,0.1,1811.9,1811.8,10.28495358]
[1743918604047,0.1,1811.9,1811.8,10.22976535]
[1743918604953,0.1,1811.9,1811.8,11.63910889]
[1743918605593,0.1,1811.9,1811.8,12.18910889]
[1743918610320,0.3821,1812.9,1812.6,3.86168]
[1743918610608,0.3821,1812.9,1812.7,9.02659]
[1743918610609,0.1,1812.9,1812.7,9.02659]
[1743918610792,0.1,1812.9,1812.7,9.45264196]
[1743918611160,0.1,1812.9,1812.8,3.86142]
[1743918611469,0.1,1812.9,1812.8,6.43782343]
[1743918611809,0.1,1812.9,1812.8,6.98782343]
[1743918611968,0.1,1812.9,1812.8,6.93266217]
[1743918612163,0.1,1812.9,1812.8,6.98780684]
[1743918612369,0.1,1812.9,1812.8,6.93266217]
[1743918612575,0.1,1812.9,1812.8,9.93266217]
[1743918612777,0.1,1813.9,1813.5,3.8598]
[1743918612978,4.315447,1813.9,1813.6,5.189]
[1743918613273,4.215447,1813.7,1813.6,5.61279551]
[1743918614085,8.074957,1813.7,1813.6,5.61279551]
[1743918615185,8.074957,1813.7,1813.6,0.42379551]
[1743918615518,11.934667,1813.7,1813.3,5.189]
[1743918615694,8.074957,1813.7,1813.6,0.4226146]
[1743918616013,8.074957,1813.7,1813.3,5.189]
[1743918616014,3.85974,1813.6,1813.3,5.189]
[1743918616378,3.85974,1813.6,1813.4,0.6]
[1743918616909,3.85974,1813.6,1813.5,0.42274339]
[1743918617683,3.85974,1813.6,1813.3,5.189]
[1743918617914,3.85974,1813.6,1813.5,0.42274339]
[1743918618105,3.85974,1813.6,1813.3,5.189]
[1743918618306,3.85974,1813.6,1813.5,0.42274339]
[1743918618605,3.85995,1813.5,1813.3,5.184]
[1743918619722,11.935517,1813.5,1813.3,5.184]
[1743918620219,8.075397,1813.5,1813.3,5.184]
[1743918621496,8.075397,1813.5,1813.4,0.6]
[1743918622810,4.215447,1813.5,1813.4,0.6]
[1743918623005,3.85972,1813.6,1813.4,0.6]
[1743918624351,8.456967,1813.8,1813.4,5.80884]
[1743918624553,12.316447,1813.8,1813.4,5.80884]
[1743918624751,8.456967,1813.8,1813.4,5.80884]
[1743918625243,12.316427,1813.8,1813.4,5.80884]
[1743918626311,3.85951,1813.7,1813.4,1.9487]
[1743918626757,3.85981,1813.6,1813.4,0.6]
[1743918627410,3.85981,1813.6,1813.4,5.786]
[1743918629855,8.075257,1813.6,1813.4,5.786]
[1743918631456,8.075257,1813.6,1813.5,0.41964934]
[1743918633419,8.075257,1813.6,1813.2,5.974]
[1743918633420,3.85999,1813.5,1813.2,5.974]
[1743918633753,4.215447,1813.4,1813.3,0.41964934]
[1743918634360,8.075267,1813.6,1813.3,0.41964934]
[1743918634853,8.075267,1813.6,1813.4,0.6]
[1743918635034,8.075267,1813.6,1813.5,0.41969226]
[1743918637629,8.075267,1813.6,1813.3,9.04335]
[1743918637815,8.075267,1813.6,1813.4,0.41923954]
[1743918638022,8.075267,1813.6,1813.3,6.6509271]
[1743918638220,8.075267,1813.6,1813.4,0.41901272]
[1743918638460,8.075267,1813.6,1813.3,6.6509271]
[1743918638662,8.075267,1813.6,1813.4,0.41901547]
[1743918638824,8.075267,1813.6,1813.3,6.6509271]
[1743918639025,8.075267,1813.6,1813.4,0.4189204]
[1743918639226,8.075267,1813.6,1813.3,6.6509271]
[1743918639546,8.075267,1813.6,1813.4,0.4189649]
[1743918639919,8.075267,1813.6,1813.3,6.6509271]
[1743918640150,3.85995,1813.5,1813.4,0.4189649]
[1743918640460,3.85995,1813.5,1813.3,6.6509271]
[1743918640767,3.85995,1813.5,1813.4,0.4189649]
[1743918640967,8.0495897,1813.5,1813.4,0.4189649]
[1743918641178,3.86066,1813.2,1812.8,4.6279]
[1743918641328,7.215447,1813.1,1812.8,4.6279]
[1743918641668,11.076257,1813.1,1812.9,0.38518539]
[1743918641862,11.076257,1813.1,1812.8,0.7666]
[1743918642164,11.076257,1813.1,1812.9,0.38518539]
[1743918642569,11.076257,1813.1,1812.8,1.749219]
[1743918642746,11.076257,1813.1,1813.0,0.38518539]
[1743918642921,11.076257,1813.1,1812.9,0.38603659]
[1743918643122,11.076257,1813.1,1812.8,1.749219]
[1743918643359,7.215447,1813.1,1812.9,0.38603659]
[1743918643654,7.215447,1813.1,1812.8,5.610569]
[1743918643950,3.86037,1813.3,1812.8,5.610569]
[1743918643951,8.075817,1813.3,1812.9,4.84671715]
[1743918645559,3.86059,1813.2,1812.9,0.98569715]
[1743918646058,4.215447,1813.1,1812.9,0.98569715]
[1743918646955,8.076297,1813.1,1812.9,0.38603659]
[1743918647337,8.076297,1813.1,1812.8,1.749219]
[1743918647537,8.076297,1813.1,1813.0,0.38590888]
[1743918647750,8.076297,1813.1,1812.9,0.38603659]
[1743918648063,8.076297,1813.1,1813.0,0.38603659]
[1743918648223,8.076297,1813.1,1812.8,1.749219]
[1743918648423,4.215447,1813.1,1812.9,0.38603659]
[1743918648655,4.215447,1813.1,1812.8,5.610559]
[1743918648958,4.215447,1813.1,1812.9,0.94709249]
[1743918649327,3.86059,1813.2,1812.9,0.94709249]
[1743918649927,3.86059,1813.2,1813.0,0.6]
[1743918650128,7.72134,1813.2,1813.0,0.6]
[1743918650323,8.075837,1813.3,1813.0,0.6]
[1743918650528,3.86039,1813.3,1813.0,1.10221259]
[1743918651367,7.72091,1813.3,1813.0,1.10221259]
[1743918651561,4.24289,1813.1,1813.0,0.6]
[1743918652072,3.86121,1812.9,1812.6,0.7668]
[1743918652271,8.076657,1812.9,1812.6,0.7668]
[1743918652470,4.215447,1812.9,1812.6,4.62855]
[1743918652770,4.215447,1812.9,1812.6,5.99851]
[1743918652939,8.076707,1812.9,1812.6,2.13676]
[1743918654462,4.215447,1812.9,1812.6,5.99859]
[1743918655236,8.076677,1812.9,1812.7,0.6]
[1743918656071,4.215447,1812.9,1812.7,0.6]
[1743918658982,8.076857,1812.9,1812.7,0.6]
[1743918659152,8.458957,1812.9,1812.7,0.6]
[1743918659687,4.597547,1812.9,1812.7,0.6]
[1743918660391,4.215447,1812.9,1812.7,0.6]
[1743918660687,4.215447,1812.9,1812.7,4.46161]
[1743918660888,8.458357,1813.1,1812.7,4.46161]
[1743918661575,8.458357,1813.1,1812.8,0.35484358]
[1743918661954,3.86103,1813.0,1812.8,0.35484358]
[1743918663250,8.458357,1813.1,1812.8,0.35484358]
[1743918665899,3.861,1813.0,1812.8,0.35484358]
[1743918666197,12.319317,1813.1,1812.8,0.35484358]
[1743918666394,4.215447,1813.1,1812.8,4.69790894]
[1743918666596,4.215447,1813.1,1812.9,0.7826]
[1743918666801,4.215447,1813.1,1812.9,4.64377]
[1743918666963,8.48013439,1813.3,1813.0,0.35589896]
[1743918668463,4.215447,1813.1,1813.0,0.35589896]
[1743918670201,4.215447,1813.1,1813.0,4.21689896]
[1743918670379,4.215447,1813.1,1813.0,5.54390886]
[1743918675305,4.215447,1813.1,1813.0,1.68290886]
[1743918680218,7.215447,1813.3,1813.0,5.54390886]
[1743918680392,8.457347,1813.6,1813.2,3.86057]
[1743918680788,4.215447,1813.4,1813.3,5.53451904]
[1743918683781,4.597547,1813.4,1813.3,0.35551904]
[1743918684106,4.597547,1813.4,1813.1,5.18]
[1743918684294,8.457697,1813.4,1813.1,5.18]
[1743918684611,8.457697,1813.4,1813.2,0.35551904]
[1743918684787,4.597547,1813.4,1813.2,0.35551904]
[1743918684994,4.597547,1813.4,1813.1,5.178]
[1743918685218,4.215447,1813.4,1813.3,0.35551904]
[1743918685376,4.215447,1813.4,1813.2,0.7635]
[1743918685583,4.215447,1813.4,1813.3,0.35551904]
[1743918689930,4.215447,1813.4,1813.1,13.803165]
[1743918690148,4.215447,1813.4,1813.3,0.35551904]
[1743918690439,4.215447,1813.4,1813.1,9.942525]
[1743918690651,4.215447,1813.4,1813.3,0.35551904]
[1743918690807,4.215447,1813.4,1813.1,9.942525]
[1743918691007,4.215447,1813.4,1813.3,0.35520246]
[1743918691202,4.215447,1813.4,1813.1,9.03864]
[1743918691440,4.215447,1813.4,1813.1,10.404954]
[1743918691603,4.215447,1813.4,1813.2,0.35520246]
[1743918691942,4.215447,1813.4,1813.1,10.404954]
[1743918692143,4.215447,1813.4,1813.2,0.35520246]
[1743918692317,4.215447,1813.4,1813.1,10.404954]
[1743918692517,4.215447,1813.4,1813.2,0.35520246]
[1743918692836,4.215447,1813.4,1813.1,10.404954]
[1743918693036,4.215447,1813.4,1813.3,0.35520246]
[1743918693642,4.215447,1813.4,1813.1,10.404954]
[1743918693840,4.215447,1813.4,1813.3,0.35520246]
[1743918694052,4.215447,1813.4,1813.1,14.265604]
[1743918694254,4.215447,1813.4,1813.3,0.35520246]
[1743918694761,4.215447,1813.4,1813.1,14.265604]
[1743918694961,4.215447,1813.4,1813.3,0.35520246]
[1743918695256,4.215447,1813.4,1813.1,14.265604]
[1743918695564,4.215447,1813.4,1813.2,1.4265604]
[1743918695725,4.215447,1813.4,1813.3,0.35520246]
[1743918695926,4.215447,1813.4,1813.1,12.89929]
[1743918696563,4.215447,1813.4,1813.2,0.35520246]
[1743918696767,4.215447,1813.4,1813.2,3.86057]
[1743918697055,8.47947024,1813.6,1813.3,4.21556246]
[1743918698116,8.47947024,1813.6,1813.3,0.35520246]
[1743918701565,4.215447,1813.1,1813.0,5.168]
[1743918704168,4.215447,1813.1,1813.0,9.029]
[1743918704331,4.215447,1813.3,1813.1,3.86077]
[1743918704534,4.215447,1813.3,1813.1,5.968847]
[1743918706470,4.215447,1813.3,1813.2,0.35532904]
[1743918706673,4.215447,1813.3,1813.1,5.968847]
[1743918706868,4.215447,1813.3,1813.2,0.35532904]
[1743918707071,4.215447,1813.3,1813.1,5.968847]
[1743918707276,4.215447,1813.3,1813.2,0.35532904]
[1743918707449,4.215447,1813.3,1813.1,5.968847]
[1743918707774,4.215447,1813.3,1813.2,4.81278374]
[1743918707940,4.215447,1813.5,1813.2,4.81278374]
[1743918708141,4.215447,1813.5,1813.3,3.86026]
[1743918708573,4.215447,1813.5,1813.4,0.35532904]
[1743918708767,4.215447,1813.5,1813.3,9.02726]
[1743918708937,4.215447,1813.5,1813.4,0.35532904]
[1743918709140,4.215447,1813.5,1813.3,14.23597947]